[Event "*** SCC Grand Prix: Titled Tuesday Blitz"]
[Site "Chess.com"]
[Date "2020.09.08"]
[Round "9"]
[White "MFguimaraes"]
[Black "DinaBelenkaya"]
[Result "1-0"]
[WhiteElo "2412"]
[BlackElo "2288"]
[TimeControl "180+1"]
[EndTime "11:48:18 PDT"]
[Termination "MFguimaraes won on time"]

1. e4 {[%clk 0:03:00.9]} 1... d5 {[%clk 0:02:59.2]} 2. exd5 {[%clk 0:03:00.7]}
2... Qxd5 {[%clk 0:03:00.1]} 3. Nc3 {[%clk 0:03:01.1]} 3... Qa5 {[%clk
0:02:59.8]} 4. Bc4 {[%clk 0:03:00.1]} 4... Nf6 {[%clk 0:02:56.4]} 5. Nf3 {[%clk
0:02:59.8]} 5... Bf5 {[%clk 0:02:52.6]} 6. Qe2 {[%clk 0:02:51.8]} 6... e6 {[%clk
0:02:50.3]} 7. d4 {[%clk 0:02:48.6]} 7... Nbd7 {[%clk 0:02:44.3]} 8. Bd2 {[%clk
0:02:48.5]} 8... Qb6 {[%clk 0:02:29.1]} 9. d5 {[%clk 0:02:21.5]} 9... O-O-O
{[%clk 0:02:14.7]} 10. dxe6 {[%clk 0:02:13.5]} 10... Bxe6 {[%clk 0:02:15.6]} 11.
Bxe6 {[%clk 0:02:13]} 11... fxe6 {[%clk 0:02:05.9]} 12. O-O {[%clk 0:02:04.8]}
12... e5 {[%clk 0:01:56.8]} 13. a4 {[%clk 0:02:01.1]} 13... Bc5 {[%clk
0:01:53.2]} 14. b4 {[%clk 0:01:44.7]} 14... Bd4 {[%clk 0:01:51.9]} 15. Rab1
{[%clk 0:01:39.9]} 15... Ng4 {[%clk 0:01:49.2]} 16. a5 {[%clk 0:01:27.7]} 16...
Qg6 {[%clk 0:01:44.4]} 17. Nb5 {[%clk 0:01:14.9]} 17... Rhe8 {[%clk 0:01:21.6]}
18. c3 {[%clk 0:01:12.4]} 18... a6 {[%clk 0:01:21.6]} 19. cxd4 {[%clk
0:01:06.6]} 19... exd4 {[%clk 0:01:20.6]} 20. Qc4 {[%clk 0:00:59.6]} 20... axb5
{[%clk 0:01:21.5]} 21. Qxb5 {[%clk 0:00:58.1]} 21... Nde5 {[%clk 0:00:59.7]} 22.
Nxe5 {[%clk 0:00:46.9]} 22... Rxe5 {[%clk 0:01:00.6]} 23. Qc4 {[%clk 0:00:40.5]}
23... Rh5 {[%clk 0:00:57.7]} 24. Bf4 {[%clk 0:00:39.6]} 24... Ne5 {[%clk
0:00:53.9]} 25. Bxe5 {[%clk 0:00:36.8]} 25... Rxe5 {[%clk 0:00:54.8]} 26. Rbc1
{[%clk 0:00:34.2]} 26... Qd6 {[%clk 0:00:50]} 27. Rfd1 {[%clk 0:00:30.5]} 27...
d3 {[%clk 0:00:49.7]} 28. Rxd3 {[%clk 0:00:27.7]} 28... Re1+ {[%clk 0:00:44.6]}
29. Rxe1 {[%clk 0:00:27]} 29... Qxd3 {[%clk 0:00:45.3]} 30. Qxd3 {[%clk
0:00:25.1]} 30... Rxd3 {[%clk 0:00:45.9]} 31. Rb1 {[%clk 0:00:25.1]} 31... c6
{[%clk 0:00:41.6]} 32. Kf1 {[%clk 0:00:25]} 32... Kd7 {[%clk 0:00:39.2]} 33. b5
{[%clk 0:00:22.4]} 33... c5 {[%clk 0:00:38.8]} 34. a6 {[%clk 0:00:22.1]} 34...
bxa6 {[%clk 0:00:37.2]} 35. bxa6 {[%clk 0:00:23]} 35... Ra3 {[%clk 0:00:37.3]}
36. Rb7+ {[%clk 0:00:21.5]} 36... Kc6 {[%clk 0:00:37.5]} 37. Rxg7 {[%clk
0:00:21.6]} 37... Rxa6 {[%clk 0:00:34.1]} 38. Rxh7 {[%clk 0:00:21.8]} 38... Ra2
{[%clk 0:00:32.1]} 39. Rh8 {[%clk 0:00:14]} 39... c4 {[%clk 0:00:31.7]} 40. Rc8+
{[%clk 0:00:13.6]} 40... Kd5 {[%clk 0:00:31.7]} 41. g4 {[%clk 0:00:13.1]} 41...
Kd4 {[%clk 0:00:26.5]} 42. g5 {[%clk 0:00:13.7]} 42... c3 {[%clk 0:00:26.2]} 43.
h4 {[%clk 0:00:13.7]} 43... c2 {[%clk 0:00:17.1]} 44. Kg2 {[%clk 0:00:13.7]}
44... Kd3 {[%clk 0:00:15.6]} 45. h5 {[%clk 0:00:13.8]} 45... Ra5 {[%clk
0:00:15.4]} 46. f4 {[%clk 0:00:13.2]} 46... Ra4 {[%clk 0:00:15.6]} 47. Rxc2
{[%clk 0:00:09.2]} 47... Kxc2 {[%clk 0:00:16.1]} 48. Kf3 {[%clk 0:00:09.8]}
48... Kd3 {[%clk 0:00:15.7]} 49. h6 {[%clk 0:00:10.2]} 49... Ra1 {[%clk
0:00:15.1]} 50. g6 {[%clk 0:00:09.8]} 50... Rg1 {[%clk 0:00:10.5]} 51. h7 {[%clk
0:00:09.1]} 51... Rxg6 {[%clk 0:00:09.4]} 52. h8=Q {[%clk 0:00:08.8]} 52... Re6
{[%clk 0:00:06.6]} 53. Qd8+ {[%clk 0:00:08.1]} 53... Kc2 {[%clk 0:00:06]} 54.
Qd5 {[%clk 0:00:08]} 54... Re1 {[%clk 0:00:04.4]} 55. f5 {[%clk 0:00:07.9]}
55... Rf1+ {[%clk 0:00:03.7]} 56. Kg4 {[%clk 0:00:08.4]} 56... Re1 {[%clk
0:00:03.2]} 57. f6 {[%clk 0:00:07.9]} 57... Rf1 {[%clk 0:00:03.5]} 58. f7 {[%clk
0:00:07.5]} 58... Rf6 {[%clk 0:00:02.6]} 59. Qe4+ {[%clk 0:00:06.4]} 59... Kd1
{[%clk 0:00:01.7]} 60. Qd4+ {[%clk 0:00:06.1]} 60... Ke2 {[%clk 0:00:01.4]} 61.
Qxf6 {[%clk 0:00:07]} 1-0

[Event "*** SCC Grand Prix: Titled Tuesday Blitz"]
[Site "Chess.com"]
[Date "2020.09.08"]
[Round "9"]
[White "MathiasWomacka"]
[Black "NotFischer"]
[Result "0-1"]
[WhiteElo "2405"]
[BlackElo "2267"]
[TimeControl "180+1"]
[EndTime "11:48:24 PDT"]
[Termination "NotFischer won on time"]

1. e4 {[%clk 0:03:00.9]} 1... d5 {[%clk 0:02:59.4]} 2. exd5 {[%clk 0:03:00.2]}
2... Nf6 {[%clk 0:02:59.8]} 3. Nf3 {[%clk 0:02:59.7]} 3... Bg4 {[%clk 0:03:00]}
4. Bb5+ {[%clk 0:02:53.9]} 4... Nbd7 {[%clk 0:02:53.9]} 5. h3 {[%clk 0:02:53.1]}
5... Bxf3 {[%clk 0:02:44.2]} 6. Qxf3 {[%clk 0:02:52.3]} 6... a6 {[%clk
0:02:44.3]} 7. Be2 {[%clk 0:02:39.6]} 7... Ne5 {[%clk 0:02:29.8]} 8. Qg3 {[%clk
0:02:32.1]} 8... Qxd5 {[%clk 0:02:29.4]} 9. Nc3 {[%clk 0:02:32]} 9... Qd6 {[%clk
0:02:24.2]} 10. d4 {[%clk 0:02:17.4]} 10... Ng6 {[%clk 0:02:12.8]} 11. Qxd6
{[%clk 0:02:09.6]} 11... cxd6 {[%clk 0:02:12.5]} 12. Be3 {[%clk 0:02:01.1]}
12... e6 {[%clk 0:02:11.7]} 13. h4 {[%clk 0:01:44.4]} 13... Rc8 {[%clk
0:02:07.1]} 14. h5 {[%clk 0:01:43.6]} 14... Ne7 {[%clk 0:02:06.6]} 15. a4 {[%clk
0:01:39.6]} 15... Ned5 {[%clk 0:02:06.4]} 16. Nxd5 {[%clk 0:01:16.9]} 16... Nxd5
{[%clk 0:02:07.3]} 17. c3 {[%clk 0:01:15.4]} 17... Nxe3 {[%clk 0:02:02]} 18.
fxe3 {[%clk 0:01:16.3]} 18... d5 {[%clk 0:01:57.3]} 19. Bf3 {[%clk 0:01:14.1]}
19... Bd6 {[%clk 0:01:53.1]} 20. e4 {[%clk 0:01:14.2]} 20... dxe4 {[%clk
0:01:43.1]} 21. Bxe4 {[%clk 0:01:15.1]} 21... b6 {[%clk 0:01:38.9]} 22. Bb7
{[%clk 0:01:12.6]} 22... Rd8 {[%clk 0:01:30.2]} 23. Bxa6 {[%clk 0:01:12.3]}
23... Bg3+ {[%clk 0:01:27.8]} 24. Ke2 {[%clk 0:01:12]} 24... Ke7 {[%clk
0:01:28.7]} 25. Bd3 {[%clk 0:01:01.6]} 25... Ra8 {[%clk 0:01:24.3]} 26. Be4
{[%clk 0:00:57.9]} 26... Ra7 {[%clk 0:01:24.2]} 27. d5 {[%clk 0:00:47.9]} 27...
h6 {[%clk 0:01:18.5]} 28. dxe6 {[%clk 0:00:41.8]} 28... Kxe6 {[%clk 0:01:19.4]}
29. Kf3 {[%clk 0:00:41.5]} 29... Be5 {[%clk 0:01:18.1]} 30. Rhd1 {[%clk
0:00:37.1]} 30... f5 {[%clk 0:01:05.2]} 31. Bc2 {[%clk 0:00:27.3]} 31... Raa8
{[%clk 0:01:00.6]} 32. Bb3+ {[%clk 0:00:24.6]} 32... Kf6 {[%clk 0:01:00.6]} 33.
Rd7 {[%clk 0:00:23.8]} 33... Rhf8 {[%clk 0:00:57.4]} 34. Re1 {[%clk 0:00:14.8]}
34... Rae8 {[%clk 0:00:52]} 35. Rb7 {[%clk 0:00:13.4]} 35... Rb8 {[%clk
0:00:48.2]} 36. Rxb8 {[%clk 0:00:12.7]} 36... Rxb8 {[%clk 0:00:38.6]} 37. Rd1
{[%clk 0:00:13.1]} 37... Re8 {[%clk 0:00:27.7]} 38. Rd5 {[%clk 0:00:11.8]} 38...
Re7 {[%clk 0:00:25.2]} 39. Bc2 {[%clk 0:00:11.4]} 39... Kg5 {[%clk 0:00:24.7]}
40. Rb5 {[%clk 0:00:10.6]} 40... Re6 {[%clk 0:00:20.2]} 41. Bb3 {[%clk
0:00:08.1]} 41... Re7 {[%clk 0:00:11]} 42. Rxb6 {[%clk 0:00:08.2]} 42... Kxh5
{[%clk 0:00:11.9]} 43. a5 {[%clk 0:00:08.6]} 43... g5 {[%clk 0:00:11.8]} 44. a6
{[%clk 0:00:07.9]} 44... g4+ {[%clk 0:00:12]} 45. Kf2 {[%clk 0:00:08.1]} 45...
Bf4 {[%clk 0:00:07]} 46. Re6 {[%clk 0:00:07.5]} 46... Ra7 {[%clk 0:00:05.9]} 47.
Bc4 {[%clk 0:00:07.3]} 47... Kg5 {[%clk 0:00:05.7]} 48. b4 {[%clk 0:00:06.8]}
48... h5 {[%clk 0:00:05.8]} 49. b5 {[%clk 0:00:06.9]} 49... h4 {[%clk
0:00:06.2]} 50. b6 {[%clk 0:00:06.9]} 50... g3+ {[%clk 0:00:06.5]} 51. Ke2
{[%clk 0:00:06.5]} 51... Ra8 {[%clk 0:00:07.2]} 52. b7 {[%clk 0:00:06]} 52...
Rd8 {[%clk 0:00:07.6]} 53. a7 {[%clk 0:00:06]} 53... Rd2+ {[%clk 0:00:07.2]} 54.
Ke1 {[%clk 0:00:06.1]} 54... Rxg2 {[%clk 0:00:07.5]} 55. b8=Q {[%clk 0:00:05.9]}
55... Rg1+ {[%clk 0:00:07.7]} 56. Ke2 {[%clk 0:00:05.9]} 56... g2 {[%clk
0:00:07.2]} 57. Qg8+ {[%clk 0:00:04.3]} 57... Kh5 {[%clk 0:00:07.7]} 58. Rg6
{[%clk 0:00:03.7]} 58... Rf1 {[%clk 0:00:06.1]} 59. Rxg2 {[%clk 0:00:02]} 59...
Bg3 {[%clk 0:00:05.9]} 0-1

[Event "*** SCC Grand Prix: Titled Tuesday Blitz"]
[Site "Chess.com"]
[Date "2020.09.08"]
[Round "9"]
[White "Agibileg"]
[Black "MFBerna"]
[Result "1/2-1/2"]
[WhiteElo "2577"]
[BlackElo "2461"]
[TimeControl "180+1"]
[EndTime "11:48:25 PDT"]
[Termination "Game drawn - insufficient material"]

1. d4 {[%clk 0:03:00.9]} 1... Nf6 {[%clk 0:02:59.9]} 2. c4 {[%clk 0:03:01]} 2...
e6 {[%clk 0:03:00.1]} 3. Nc3 {[%clk 0:03:01.3]} 3... d5 {[%clk 0:03:00.3]} 4.
cxd5 {[%clk 0:03:01.1]} 4... exd5 {[%clk 0:02:59.6]} 5. Bg5 {[%clk 0:03:01.5]}
5... Be7 {[%clk 0:02:59.5]} 6. e3 {[%clk 0:02:59.5]} 6... c6 {[%clk 0:02:59.7]}
7. Qc2 {[%clk 0:02:59.9]} 7... O-O {[%clk 0:02:46]} 8. Bd3 {[%clk 0:02:59.3]}
8... Nbd7 {[%clk 0:02:45.6]} 9. Nf3 {[%clk 0:02:58.3]} 9... Re8 {[%clk
0:02:45.6]} 10. O-O {[%clk 0:02:58.1]} 10... Nf8 {[%clk 0:02:41]} 11. Rab1
{[%clk 0:02:56.2]} 11... a5 {[%clk 0:02:30.2]} 12. h3 {[%clk 0:02:55.7]} 12...
Ne4 {[%clk 0:02:29.5]} 13. Bf4 {[%clk 0:02:54.6]} 13... Nd6 {[%clk 0:02:21.2]}
14. a3 {[%clk 0:02:50.5]} 14... g6 {[%clk 0:02:18.6]} 15. b4 {[%clk 0:02:47.4]}
15... axb4 {[%clk 0:02:19.5]} 16. axb4 {[%clk 0:02:47.9]} 16... b5 {[%clk
0:02:20]} 17. Bxd6 {[%clk 0:02:45.8]} 17... Bxd6 {[%clk 0:02:20.9]} 18. e4
{[%clk 0:02:45.1]} 18... dxe4 {[%clk 0:02:10.2]} 19. Bxe4 {[%clk 0:02:44.2]}
19... Bd7 {[%clk 0:02:02.5]} 20. d5 {[%clk 0:02:39.8]} 20... cxd5 {[%clk
0:01:34.2]} 21. Bxd5 {[%clk 0:02:39.4]} 21... Rc8 {[%clk 0:01:27.6]} 22. Qb3
{[%clk 0:02:38.3]} 22... Ne6 {[%clk 0:01:22.7]} 23. Ne4 {[%clk 0:02:35.5]} 23...
Be7 {[%clk 0:01:02.6]} 24. Rbd1 {[%clk 0:02:34.7]} 24... Qc7 {[%clk 0:01:01.4]}
25. Qe3 {[%clk 0:02:11]} 25... Red8 {[%clk 0:00:57.2]} 26. Qh6 {[%clk 0:02:11]}
26... Qf4 {[%clk 0:00:52]} 27. Qxf4 {[%clk 0:01:58.5]} 27... Nxf4 {[%clk
0:00:52.9]} 28. Nc5 {[%clk 0:01:27.9]} 28... Bxc5 {[%clk 0:00:36.8]} 29. bxc5
{[%clk 0:01:25.5]} 29... Rxc5 {[%clk 0:00:23.4]} 30. Bb3 {[%clk 0:01:22.9]}
30... Rcc8 {[%clk 0:00:15.1]} 31. Ng5 {[%clk 0:00:58.7]} 31... Be6 {[%clk
0:00:11.8]} 32. Nxe6 {[%clk 0:00:57.6]} 32... Nxe6 {[%clk 0:00:12.7]} 33. Bxe6
{[%clk 0:00:57.7]} 33... fxe6 {[%clk 0:00:12.7]} 34. Rb1 {[%clk 0:00:55.3]}
34... Rb8 {[%clk 0:00:09.9]} 35. Rb4 {[%clk 0:00:54.7]} 35... Rd5 {[%clk
0:00:08.5]} 36. Rc1 {[%clk 0:00:55]} 36... Rb7 {[%clk 0:00:07.9]} 37. g3 {[%clk
0:00:52.5]} 37... Kf7 {[%clk 0:00:08.1]} 38. Kg2 {[%clk 0:00:52.7]} 38... h5
{[%clk 0:00:08.1]} 39. g4 {[%clk 0:00:52.6]} 39... hxg4 {[%clk 0:00:07.9]} 40.
hxg4 {[%clk 0:00:53.5]} 40... e5 {[%clk 0:00:07.7]} 41. Rc6 {[%clk 0:00:52.7]}
41... Rd4 {[%clk 0:00:06.5]} 42. Rb3 {[%clk 0:00:52.5]} 42... Rxg4+ {[%clk
0:00:06.5]} 43. Kh3 {[%clk 0:00:51.8]} 43... Rf4 {[%clk 0:00:06.4]} 44. Kg3
{[%clk 0:00:52.2]} 44... b4 {[%clk 0:00:06.6]} 45. Rc5 {[%clk 0:00:48.8]} 45...
Kf6 {[%clk 0:00:06]} 46. Rc6+ {[%clk 0:00:47.9]} 46... Kf5 {[%clk 0:00:06.5]}
47. Rc5 {[%clk 0:00:47]} 47... Rd7 {[%clk 0:00:05.9]} 48. Re3 {[%clk 0:00:45.9]}
48... Re7 {[%clk 0:00:06.1]} 49. Rb5 {[%clk 0:00:45.2]} 49... Rg4+ {[%clk
0:00:06.3]} 50. Kf3 {[%clk 0:00:44.8]} 50... Rf4+ {[%clk 0:00:07.2]} 51. Kg3
{[%clk 0:00:45]} 51... Rg4+ {[%clk 0:00:06.8]} 52. Kf3 {[%clk 0:00:44.6]} 52...
Re6 {[%clk 0:00:06.9]} 53. Re2 {[%clk 0:00:41.6]} 53... Rf4+ {[%clk 0:00:07.2]}
54. Kg3 {[%clk 0:00:41.9]} 54... Re4 {[%clk 0:00:06.7]} 55. Rb2 {[%clk
0:00:40.8]} 55... Rd6 {[%clk 0:00:06.2]} 56. R2xb4 {[%clk 0:00:39.7]} 56... Rxb4
{[%clk 0:00:07.1]} 57. Rxb4 {[%clk 0:00:40.6]} 57... Rd4 {[%clk 0:00:07]} 58.
Rb8 {[%clk 0:00:39.4]} 58... Rd3+ {[%clk 0:00:07.3]} 59. Kg2 {[%clk 0:00:39.2]}
59... g5 {[%clk 0:00:07]} 60. Rb4 {[%clk 0:00:37.9]} 60... e4 {[%clk 0:00:06.7]}
61. Ra4 {[%clk 0:00:31.8]} 61... Kf4 {[%clk 0:00:06.9]} 62. Rb4 {[%clk
0:00:31.8]} 62... Rd2 {[%clk 0:00:06.8]} 63. Ra4 {[%clk 0:00:31.9]} 63... g4
{[%clk 0:00:07]} 64. Ra8 {[%clk 0:00:25.4]} 64... e3 {[%clk 0:00:03.9]} 65. Rf8+
{[%clk 0:00:25.9]} 65... Kg5 {[%clk 0:00:04.2]} 66. Kg3 {[%clk 0:00:26]} 66...
Rxf2 {[%clk 0:00:03.7]} 67. Rxf2 {[%clk 0:00:25.3]} 67... exf2 {[%clk 0:00:04]}
68. Kxf2 {[%clk 0:00:26.2]} 68... Kf4 {[%clk 0:00:04.6]} 69. Kg2 {[%clk
0:00:26.4]} 69... g3 {[%clk 0:00:05.5]} 70. Kg1 {[%clk 0:00:27]} 70... Kf3
{[%clk 0:00:06.4]} 71. Kf1 {[%clk 0:00:27.6]} 71... Kg4 {[%clk 0:00:06.8]} 72.
Kg2 {[%clk 0:00:27.9]} 72... Kh4 {[%clk 0:00:07.4]} 73. Kg1 {[%clk 0:00:28.3]}
73... Kh3 {[%clk 0:00:07.8]} 74. Kh1 {[%clk 0:00:28.3]} 74... Kg4 {[%clk
0:00:08.4]} 75. Kg2 {[%clk 0:00:28.5]} 75... Kf4 {[%clk 0:00:09.1]} 76. Kg1
{[%clk 0:00:28.7]} 76... Kf3 {[%clk 0:00:09.3]} 77. Kf1 {[%clk 0:00:29.2]} 77...
g2+ {[%clk 0:00:08.6]} 78. Kg1 {[%clk 0:00:29.6]} 78... Kg4 {[%clk 0:00:09.2]}
79. Kh2 {[%clk 0:00:27.9]} 79... Kf4 {[%clk 0:00:08.8]} 80. Kxg2 {[%clk
0:00:24.8]} 1/2-1/2

[Event "*** SCC Grand Prix: Titled Tuesday Blitz"]
[Site "Chess.com"]
[Date "2020.09.08"]
[Round "9"]
[White "wonderfultime"]
[Black "AlexTriapishko"]
[Result "1-0"]
[WhiteElo "2928"]
[BlackElo "2747"]
[TimeControl "180+1"]
[EndTime "11:48:26 PDT"]
[Termination "wonderfultime won on time"]

1. d4 {[%clk 0:03:00.9]} 1... d5 {[%clk 0:02:56.5]} 2. Nf3 {[%clk 0:03:01.3]}
2... c5 {[%clk 0:02:55.7]} 3. c3 {[%clk 0:03:01.4]} 3... cxd4 {[%clk 0:02:46.8]}
4. cxd4 {[%clk 0:03:02.3]} 4... Nc6 {[%clk 0:02:47.3]} 5. Bf4 {[%clk 0:03:02]}
5... Nf6 {[%clk 0:02:44.1]} 6. e3 {[%clk 0:03:01.5]} 6... Nh5 {[%clk 0:02:42.2]}
7. Be5 {[%clk 0:03:00.4]} 7... f6 {[%clk 0:02:41.9]} 8. Bg3 {[%clk 0:03:00.8]}
8... g6 {[%clk 0:02:42.3]} 9. Nc3 {[%clk 0:03:00.5]} 9... e6 {[%clk 0:02:42.3]}
10. Be2 {[%clk 0:02:55]} 10... Bd7 {[%clk 0:02:27.6]} 11. Rc1 {[%clk 0:02:54.5]}
11... Rc8 {[%clk 0:02:25.5]} 12. O-O {[%clk 0:02:54.3]} 12... Nxg3 {[%clk
0:02:22.6]} 13. hxg3 {[%clk 0:02:55.2]} 13... Bd6 {[%clk 0:02:16.2]} 14. e4
{[%clk 0:02:53.9]} 14... Ne7 {[%clk 0:02:02.6]} 15. Qb3 {[%clk 0:02:48.9]} 15...
Qb6 {[%clk 0:01:42.5]} 16. Bb5 {[%clk 0:02:28.2]} 16... Bxb5 {[%clk 0:01:08.3]}
17. Nxb5 {[%clk 0:02:27.1]} 17... Rxc1 {[%clk 0:00:48.9]} 18. Rxc1 {[%clk
0:02:28]} 18... O-O {[%clk 0:00:41.5]} 19. exd5 {[%clk 0:01:40.5]} 19... Nxd5
{[%clk 0:00:35.6]} 20. Nxd6 {[%clk 0:01:29.6]} 20... Qxd6 {[%clk 0:00:36.5]} 21.
Qxb7 {[%clk 0:01:28.9]} 21... Qb6 {[%clk 0:00:29.8]} 22. Qc6 {[%clk 0:00:59.1]}
22... Rb8 {[%clk 0:00:25.2]} 23. b3 {[%clk 0:00:46.7]} 23... Qxc6 {[%clk
0:00:17.4]} 24. Rxc6 {[%clk 0:00:47.6]} 24... Nb4 {[%clk 0:00:18.2]} 25. Rxe6
{[%clk 0:00:46.1]} 25... Nxa2 {[%clk 0:00:18.8]} 26. Rxf6 {[%clk 0:00:40.3]}
26... Rxb3 {[%clk 0:00:18.6]} 27. Ra6 {[%clk 0:00:40.5]} 27... Rb1+ {[%clk
0:00:16.2]} 28. Kh2 {[%clk 0:00:40.5]} 28... Nc3 {[%clk 0:00:17.1]} 29. Rxa7
{[%clk 0:00:38.7]} 29... Ne4 {[%clk 0:00:17.1]} 30. Ra2 {[%clk 0:00:37.6]} 30...
Rf1 {[%clk 0:00:16.9]} 31. Nd2 {[%clk 0:00:30.7]} 31... Nxd2 {[%clk 0:00:09.6]}
32. Rxd2 {[%clk 0:00:31.6]} 32... Kf7 {[%clk 0:00:10.4]} 33. d5 {[%clk
0:00:30.9]} 33... Ke7 {[%clk 0:00:10.5]} 34. g4 {[%clk 0:00:31.5]} 34... Kd7
{[%clk 0:00:11.1]} 35. Kg3 {[%clk 0:00:30.9]} 35... g5 {[%clk 0:00:10.3]} 36.
Kf3 {[%clk 0:00:25.6]} 36... Re1 {[%clk 0:00:05.6]} 37. Ra2 {[%clk 0:00:24.7]}
37... Kd6 {[%clk 0:00:04.7]} 38. Ra6+ {[%clk 0:00:24.9]} 38... Kxd5 {[%clk
0:00:01.7]} 39. Ra5+ {[%clk 0:00:25]} 39... Ke6 {[%clk 0:00:01.7]} 40. Rxg5
{[%clk 0:00:25.9]} 40... Kf6 {[%clk 0:00:02.2]} 41. Rh5 {[%clk 0:00:26.4]} 41...
Kg6 {[%clk 0:00:02.6]} 42. Ra5 {[%clk 0:00:26.9]} 42... Rb1 {[%clk 0:00:02.6]}
43. Ra4 {[%clk 0:00:26.7]} 43... Rb3+ {[%clk 0:00:02.9]} 44. Kf4 {[%clk
0:00:26.8]} 44... Rb6 {[%clk 0:00:03]} 45. f3 {[%clk 0:00:26.2]} 45... Rf6+
{[%clk 0:00:02.9]} 46. Kg3 {[%clk 0:00:26.6]} 46... Rb6 {[%clk 0:00:03.1]} 47.
Ra5 {[%clk 0:00:25.7]} 47... h6 {[%clk 0:00:03.3]} 48. Kh4 {[%clk 0:00:25.7]}
48... Rb1 {[%clk 0:00:03.4]} 49. Ra6+ {[%clk 0:00:25.9]} 49... Kg7 {[%clk
0:00:04]} 50. Kg3 {[%clk 0:00:25.8]} 50... Rb4 {[%clk 0:00:03.5]} 51. Re6 {[%clk
0:00:23.5]} 51... Rb3 {[%clk 0:00:03.7]} 52. Kf4 {[%clk 0:00:23.5]} 52... Rb2
{[%clk 0:00:04]} 53. g3 {[%clk 0:00:23.6]} 53... Rb5 {[%clk 0:00:02.6]} 54. Re5
{[%clk 0:00:21.7]} 54... Rb3 {[%clk 0:00:02.8]} 55. g5 {[%clk 0:00:21.2]} 55...
h5 {[%clk 0:00:03]} 56. Ra5 {[%clk 0:00:18.2]} 56... Kg6 {[%clk 0:00:03]} 57.
Ra6+ {[%clk 0:00:18.4]} 57... Kg7 {[%clk 0:00:03.7]} 58. Rf6 {[%clk 0:00:16.3]}
58... Rb4+ {[%clk 0:00:03.3]} 59. Ke3 {[%clk 0:00:14.9]} 59... Rb3+ {[%clk
0:00:03.5]} 60. Kf2 {[%clk 0:00:14.6]} 60... Rb2+ {[%clk 0:00:03.8]} 61. Kg1
{[%clk 0:00:15.2]} 61... Rb1+ {[%clk 0:00:01.7]} 62. Kg2 {[%clk 0:00:15.4]}
62... Rb2+ {[%clk 0:00:02.6]} 63. Kh3 {[%clk 0:00:15.8]} 63... Rb1 {[%clk
0:00:03.4]} 64. f4 {[%clk 0:00:14.1]} 64... Rb2 {[%clk 0:00:03.8]} 65. Rh6
{[%clk 0:00:13.7]} 65... Rb1 {[%clk 0:00:02.7]} 66. Rxh5 {[%clk 0:00:13.9]}
66... Kg6 {[%clk 0:00:03.4]} 67. Rh6+ {[%clk 0:00:14.2]} 67... Kf5 {[%clk
0:00:04.3]} 68. Rf6+ {[%clk 0:00:14.8]} 68... Ke4 {[%clk 0:00:05.2]} 69. Kg4
{[%clk 0:00:15.7]} 1-0